Cogmind - Beta 13 @@@ ROGUE MODE // 2024.04.07 @ 20:21:38 Player: Fractal Result: Destroyed by G-34 Mercenary with Small Laser Performance ------------- Evolutions (0) 0 Regions Visited (2) 400 Robots Destroyed (23) 115 Value Destroyed (438) 438 Prototype IDs (0) 0 Alien Tech Used (0) 0 Bonus (66) 66 TOTAL SCORE: 1019 Bonus ------- Follower Combat Kills 66 Cogmind --------- Core Integrity 0/250 Matter 284/300 Energy 215/250 System Corruption 0% Temperature Cool (20) Movement Walking (120) Location -10/Mines Parts ------- > --- POWER (1) -------- Ion Engine > --- PROPULSION (2) --- Aluminum Leg Aluminum Leg > --- UTILITY (2) ------ Medium Storage Unit ECM Suite > --- WEAPON (2) ------- Light Assault Rifle Mining Laser > --- INVENTORY (10) --- Light Ion Engine Aluminum Leg Aluminum Leg Aluminum Leg High-capacity Storage Unit Sensor Array Signal Interpreter Light Assault Rifle Light Cannon Grenade Launcher Peak State ------------ > --- POWER ------------ Light Nuclear Core > --- PROPULSION ------- Aluminum Leg Aluminum Leg > --- UTILITY ---------- Medium Storage Unit ECM Suite > --- WEAPON ----------- Medium Laser Assault Rifle > --- INVENTORY -------- Ion Engine Aluminum Leg Aluminum Leg High-capacity Storage Unit Sensor Array Signal Interpreter Assault Rifle Light Assault Rifle Light Assault Rifle Light Cannon [Rating: 10] Favorites ----------- Power Ion Engine Engine Ion Engine Power Core Light Nuclear Core Propulsion Aluminum Leg Leg Aluminum Leg Utility ECM Suite Device ECM Suite Storage Medium Storage Unit Weapon Assault Rifle Energy Gun Medium Laser Ballistic Gun Assault Rifle Ballistic Cannon Light Cannon Special Weapon Mining Laser Build | -11 -10 -10 ------- Run | Yrd Mat Min Slots Evolved . | . . . Power . | . . . Propulsion . | . . . Utility . | . . . Weapon . | . . . Parts Attached 21 | 6 5 10 Power 4 | 1 1 2 Engine 3 | 1 1 1 Core 1 | . . 1 Reactor . | . . . Propulsion 8 | 2 2 4 Treads . | . . . Leg 8 | 2 2 4 Wheel . | . . . Hover . | . . . Flight . | . . . Utility 3 | 1 2 . Device 1 | . 1 . Storage 2 | 1 1 . Processor . | . . . Hackware . | . . . Protection . | . . . Artifact . | . . . Weapon 6 | 2 . 4 Energy Gun 1 | 1 . . Energy Cannon . | . . . Ballistic Gun 3 | 1 . 2 Ballistic Cannon 1 | . . 1 Launcher . | . . . Special Weapon 1 | . . 1 Impact Weapon . | . . . Slashing Weapon . | . . . Piercing Weapon . | . . . Special Melee Weapon . | . . . Unidentified Prototypes . | . . . Parts Lost 6 | . . 6 Power 2 | . . 2 Propulsion 1 | . . 1 Utility . | . . . Weapon 3 | . . 3 Highest Loss Streak 2 | . . 2 To Critical Strikes . | . . . Average Slot Usage (%) 97 | . 98 97 Engine 12 | . 14 11 Leg 27 | . 28 27 Device 13 | . 12 14 Storage 14 | . 14 14 Energy Gun 6 | . 14 3 Ballistic Gun 12 | . 14 12 Ballistic Cannon 6 | . . 9 Special Weapon 1 | . . 2 Naked Turns . | . . . Heaviest Build 22 | 12 19 22 Greatest Support 20 | 20 20 20 Greatest Overweight (x) 1 | 1 . 1 Average Overweight (x) . | . . . Largest Inventory Capacity 10 | 8 10 10 Average Capacity 9 | 7 8 10 Most Carried 10 | 3 8 10 Average Carried 7 | 1 6 9 Final Capacity 10 | 8 10 10 Final Carried 10 | 2 8 10 Class Distribution -------------------- 100% | Mutant Dominant Class ---------------- Mutant | -10/Materials Mutant | -10/Mines Resources | -11 -10 -10 ----------- Run | Yrd Mat Min Matter Collected 684 | 206 172 306 Remotely . | . . . Salvage Created 458 | . 173 285 Parts 41 | . 9 32 Haulers Intercepted . | . . . Recyclers Shooed 2 | . 2 . Parts Field Recycled . | . . . Retrieved Matter . | . . . Parts Self-Destructed . | . . . Prevented . | . . . Kills | -11 -10 -10 ------- Run | Yrd Mat Min Combat Hostiles Destroyed 22 | . 6 16 Guns 17 | . 6 11 Cannons 5 | . . 5 Classes Destroyed 3 | . 2 1 Worker 1 | . . 1 Swarmer 15 | . 3 12 Grunt 7 | . 3 4 Best Kill Streak 5 | . 3 5 Combat Bots Only 4 | . 3 4 Max Kills in Single Turn 2 | . 1 2 Gunslinging . | . . . Exploded . | . . . Melee . | . . . Uniques/NPCs Destroyed . | . . . Combat | -11 -10 -10 -------- Run | Yrd Mat Min Hostile Shots Fired 153 | . 34 119 Missed 44 | . 8 36 Damage Taken 1193 | . 238 955 Core 257 | . 21 236 Absorbed by Shields . | . . . Core Remaining (%) 100 | 100 . . Volleys Fired 83 | . 30 53 Largest 2 | . 2 2 Hottest 100 | . 70 100 Shots Fired 145 | . 53 92 Gun 112 | . 53 59 Cannon 29 | . . 29 Launcher . | . . . Special 4 | . . 4 Kinetic 98 | . 30 68 Thermal 47 | . 23 24 Explosive . | . . . Electromagnetic . | . . . Robot Hit Streak 7 | . 7 6 Robot Miss Streak 7 | . 7 6 Penetration Max . | . . . Secondary Targets 1 | . . 1 Max Gunslinging Chain 1 | . . 1 Shots Hit Robots 69 | . 24 45 Core Hits 35 | . 13 22 Critical Kills . | . . . Critical Parts Destroyed . | . . . Critical Strikes 3 | . 1 2 Burn 2 | . 1 1 Blast 1 | . . 1 Melee Attacks . | . . . Impact . | . . . Slashing . | . . . Piercing . | . . . Sneak Attacks . | . . . Combat Hostiles . | . . . Follow-up Attacks . | . . . Damage Inflicted 969 | . 321 648 Guns 669 | . 321 348 Cannons 297 | . . 297 Explosions . | . . . Melee . | . . . Ramming 3 | . . 3 Kinetic 778 | . 222 556 Thermal 188 | . 99 89 Explosive . | . . . Electromagnetic . | . . . Impact . | . . . Slashing . | . . . Piercing . | . . . Highest Corruption . | . . . Average Corruption . | . . . Corruption Purged . | . . . Corruption Blocked . | . . . Overload Shots . | . . . Overflow Damage 7 | . . 7 Projectiles 7 | . . 7 Explosions . | . . . Melee . | . . . Knockbacks 6 | . . 6 Impact . | . . . Kinetic 5 | . . 5 Secondary 1 | . . 1 Self-Inflicted Damage . | . . . Shots . | . . . Rammed . | . . . Targets Rammed 1 | . . 1 Kicked 1 | . . 1 Crushed . | . . . Highest Temperature 196 | . 135 196 Average Temperature 44 | . 41 47 Received Heat Transfer 384 | . 54 330 Siege Activations . | . . . Robots Corrupted . | . . . Combat Hostiles . | . . . Parts Fried . | . . . Impact Corruptions . | . . . Robots Melted . | . . . Combat Hostiles . | . . . Parts Melted 1 | . . 1 Heat Transferred 703 | . 370 333 Parts Sabotaged . | . . . Parts Stolen . | . . . Parts Stripped . | . . . Power Chain Reactions . | . . . Alert | -11 -10 -10 ------- Run | Yrd Mat Min Peak Influence 240 | . 214 240 Initial 5 | . . 5 Average 130 | . 108 149 Maximum Alert Level 1 | . 1 1 Low Security (%) 81 | 100 99 72 Level 1 18 | . . 27 Level 2 . | . . . Level 3 . | . . . Level 4 . | . . . Level 5 . | . . . High Security . | . . . Max Security . | . . . Squads Dispatched . | . . . Investigation . | . . . Extermination . | . . . Reinforcement . | . . . Assault . | . . . Garrison . | . . . Intercept . | . . . Searches Triggered . | . . . Construction Impeded . | . . . Haulers Reinforced . | . . . Active Scanning Responses . | . . . Cargo Convoy Interrupts . | . . . Stealth | -11 -10 -10 --------- Run | Yrd Mat Min Distress Signals 1 | . 1 . Communications Jammed . | . . . Distress Signals . | . . . Times Spotted 36 | . 10 26 Peak Tracking Total 4 | . 4 4 Tactical Retreats 5 | . . 5 Traps | -11 -10 -10 ------- Run | Yrd Mat Min Traps Triggered . | . . . Indirectly . | . . . Trap Hack Attempts . | . . . Triggered . | . . . Disarmed . | . . . Reprogrammed . | . . . Reused . | . . . Traps Extracted . | . . . Installed . | . . . Triggered . | . . . Machines | -11 -10 -10 ---------- Run | Yrd Mat Min Machines Disabled 1 | . . 1 Max in Single Turn 1 | . . 1 Machines Repaired . | . . . Machines Dismantled . | . . . Machines Sabotaged . | . . . Overloaded Fab Kills . | . . . Hacking | -11 -10 -10 --------- Run | Yrd Mat Min Machines Accessed 3 | . 3 . Terminals 3 | . 3 . Fabricators . | . . . Repair Stations . | . . . Recycling Units . | . . . Scanalyzers . | . . . Garrison Access . | . . . Total Hacks 10 | . 10 . Successful 4 | . 4 . Failed 6 | . 6 . Catastrophic 2 | . 2 . Database Lockouts . | . . . Manual 5 | . 5 . Terminals 10 | . 10 . Fabricators . | . . . Repair Stations . | . . . Recycling Units . | . . . Scanalyzers . | . . . Garrison Access . | . . . Terminal Hacks 4 | . 4 . Record 1 | . 1 . Terminal Index 1 | . 1 . Locate Traps 1 | . 1 . Dispatch Records 1 | . 1 . Fabricator Hacks . | . . . Repair Station Hacks . | . . . Recycling Unit Hacks . | . . . Scanalyzer . | . . . Garrison Access Hacks . | . . . Unauthorized Hacks . | . . . Terminals . | . . . Fabricators . | . . . Repair Stations . | . . . Recycling Units . | . . . Scanalyzers . | . . . Garrison Access . | . . . Data Cores Recovered . | . . . Used . | . . . Hacking Detections 3 | . 3 . Full Trace Events 1 | . 1 . Feedback Events . | . . . Feedback Blocked . | . . . Robot Schematics Acquired . | . . . Robots Built . | . . . Authchips . | . . . Time . | . . . Total Robot Build Rating . | . . . Part Schematics Acquired . | . . . Parts Built . | . . . Authchips . | . . . Time . | . . . Total Part Build Rating . | . . . Parts Repaired . | . . . Time . | . . . Parts Recycled . | . . . Recycled Matter . | . . . Retrieved Matter . | . . . Retrieved Components . | . . . Parts Scanalyzed . | . . . Part Schematics Acquired . | . . . Parts Damaged . | . . . Bothacking | -11 -10 -10 ------------ Run | Yrd Mat Min Used RIF Installer . | . . . Robots Hacked . | . . . Non-combat . | . . . Combat . | . . . Robot Hacks Applied . | . . . Relay Couplers Released . | . . . Fabnet Peak Effective % . | . . . Robots Rewired . | . . . Allies Hacked . | . . . Hacks Repelled . | . . . Allies | -11 -10 -10 -------- Run | Yrd Mat Min Total Allies 1 | . . 1 Largest Group 1 | . . 1 Highest-Rated Group 31 | . . 31 Highest-Rated Ally 31 | . . 31 Total Orders . | . . . Ally Attacks 10 | . . 10 Total Damage 206 | . . 206 Kills 2 | . . 2 Allies Corrupted . | . . . Allies Melted . | . . . Intel | -11 -10 -10 ------- Run | Yrd Mat Min Robot Analysis Total . | . . . Derelict Logs Recovered 3 | . . 3 Drone Launches . | . . . Drone Recoveries . | . . . Exploration | -11 -10 -10 ------------- Run | Yrd Mat Min Turns Passed 1393 | 61 416 916 Spaces Moved 762 | 44 266 452 Core 6 | 6 . . Treads . | . . . Legs 756 | 38 266 452 Wheels . | . . . Hover . | . . . Flight . | . . . Fastest Speed 50 | 50 120 120 Average Speed 143 | 115 120 160 Slowest Speed 190 | 120 120 190 Overloaded Moves . | . . . Propulsion Burnouts . | . . . Robots Hopped . | . . . Cave-ins Triggered . | . . . Exploration Rate (%) 48 | 3 55 88 Regions Visited 2 Branch Regions 1 Pre-discovered Areas . | . . . Known Exits Taken . | . . . Unknown Exits Taken 2 | 1 1 . Scrap Searched 2 | . . 2 Spaces Dug 3 | . . 3 Terrain Destroyed 4 | . . 4 Melee . | . . . Projectile 4 | . . 4 AOE . | . . . Terrain Rammed . | . . . Walls Destroyed . | . . . Machines Disabled . | . . . Actions | -11 -10 -10 --------- Run | Yrd Mat Min Total 906 | 52 310 544 Wait 24 | . . 24 Move 760 | 43 265 452 Hop . | . . . Pick Up 13 | 3 6 4 Fast Attach 7 | 5 1 1 Attach 6 | 1 . 5 Detach . | . . . Swap 8 | . 4 4 Drop 4 | . 4 . Fire 83 | . 30 53 Melee . | . . . Ram . | . . . Kick 1 | . . 1 Crush . | . . . Escape Stasis . | . . . Rewire . | . . . Trap . | . . . Miscellaneous . | . . . Route ------- -11/Scrapyard -10/Materials -10/Mines (discovered 1 exit: [*Mat]) History --------- Turn | Location | Event 20 | -11/Scrapyard | Discovered new exit (range 16) 62 | -11/Scrapyard | Entered Materials 274 | -10/Materials | Discovered new exit (range 12) 308 | -10/Materials | Build established: Mutant 478 | -10/Materials | Entered Mines 624 | -10/Mines | Core integrity fell below 50% 691 | -10/Mines | Core integrity fell below 20% 1019 | -10/Mines | Learned Materials security intel 1197 | -10/Mines | Received a Mining Laser from a helpful Derelict 1303 | -10/Mines | Discovered new exit (range 12) 1317 | -10/Mines | Learned Materials emergency access door positions 1394 | -10/Mines | Destroyed by G-34 Mercenary with Small Laser Last Messages --------------- K4-KI4(g): "You're apparently new around these parts, I'll cover you." Acquired Mining Laser. K4-KI4(g): "Mining lasers are a lot more useful than you might think..." Searching scrap... Found Grenade Launcher. Found 31 Matter. Acquired 31 matter. Acquired Grenade Launcher. Acquired 4 matter. EXIT=FOUND Acquired derelict log, extracted data. Data stored: Materials emergency access points. Searching scrap... Found Heat Sink. Found 14 Matter. Acquired 14 matter. Acquired derelict log, extracted data. Data stored: Recycling entrances (x1). Map ----- +----------------------------------------------------+ | ????????????????# #?????## ##?????? | | ?????????#?????? %#?????# ###???? | | ????????? ##???####?????##### ##??? | | ????????? #????????????????## #??? | | ????????? ???????#########?## #??? | | ????????? ???????# #??## #??? | | ?????????# #???????# #???## ##??? | | ?????????# #???????# #????# ##???? | | ?????????#%#???????# #??### #????? | | ##########*######### < #??# #????? | | * [ #??# ###????? | | ### ######%######### #??#!#??????? | | #?# #????#=#???????# #??# #??????? | | #?# #????# #???????# #??# #??????? | | ??# #????# #???????#### ###??# #??????? | | ### ##???# #??????????# #????# #??????? | | # ##??# #??????????# #????# #??????? | | #??#*#??????????# #????# #??????? | | # #### #??????????# ###### ####???? | | [#??????????# #???? | | # ######??????????# #???? | | # ##???????????????########### #???? | | ##????????????????????????## ##??? | | ##????????????????######## #??? | | ##???????????????# g #??? | | # ##??????????????#@##### #??? | | #??????????????# ;#??# #??? | | ## #?????????????? g ?# ##??? | | ##?# ##?????????????# """ ### ##???? | | #???###??????????????# """ #?####????? | | #????????????????????#g""" #?????????? | | ##????????????????????# #?????????? | | ##????????????????????# #?????????? | | ##???????????????????# ??????????? | | ##??????????????????## ????????????? | | ##?????????????????????????????????? | | " ##????????????????????????????????? | | ## #####????????????????????????????? | | #### ##???????????????????????????? | | #??## #???????????????????????????? | | #???# #???????????????????????????? | | #???# ##???????????????????????????? | | #???## ###????????????????????????????? | | ?????####??????????????????????????????? | | ???????????????????????????????????????? | | ???????????????????????????????????????? | | ???????????????????????????????????????? | | | | | | | +----------------------------------------------------+ Best States ------------- Heat Dissipation 25 Energy Generation 14 Energy Capacity 250 Matter Stores 300 Matter Capacity 300 Sight Range 16 Terrain Scan Density 10 ECM Strength 1 Evasion (%) 55 Item Schematics ----------------- None Robot Schematics ------------------ None Fabricated ------------ Nothing Alien Tech Used ----------------- None Achievements -------------- None Challenges ------------ None Game ------ Seed ServoNodeCore Manual? 0 Play Time 00:19:24 Cumulative 24.0 hours Start 2024.04.07 @ 20:02:27 End 2024.04.07 @ 20:21:38 Sessions 1 Manual Loads 0 Difficulty Rogue Special Mode None Game No. 30 Rogue 30 Adventurer 0 Explorer 0 Win Type - Total 0 Types 0/0/0/0/0/0/0/0/0 Lore% 17 Gallery% 22 Achievement% 17 Wizard Run 0 Options --------- Layout 1 ASCII 0 Keyboard 1 Movement Numpad Keybinds 0 Fullscreen 1 Font 48/Terminus Map View 50x35 Zoom Use 0% Tactical HUD 0 Map Filters NONE Filters NONE Steam 1 RUN: ba23fede-aa91-406b-a653-b12a9069fb48